bitfinex/quotes_ETHUSD_20241024
["timestamp","ask_amount","ask_price","bid_price","bid_amount"]
[1729779370826,3.95977,2525.4,2525.0,0.5595177]
[1729779371039,3.95992,2525.3,2525.0,0.5595177]
[1729779371219,3.96018,2525.2,2524.8,1.0794]
[1729779371420,3.95986,2525.4,2524.9,3.96054]
[1729779371613,9.66510428,2525.8,2524.9,3.96054]
[1729779371614,3.95959,2525.6,2525.0,3.96032]
[1729779372031,3.95971,2525.5,2525.0,3.96032]
[1729779372232,3.95971,2525.5,2524.9,3.96053]
[1729779372233,3.95987,2525.4,2524.9,3.96053]
[1729779372432,3.95992,2525.3,2524.9,0.900053]
[1729779372941,3.95977,2525.4,2524.9,4.03974159]
[1729779373242,3.95971,2525.5,2524.9,0.07920159]
[1729779373451,3.95976,2525.4,2524.9,0.07920159]
[1729779373612,3.95976,2525.4,2524.9,4.03971165]
[1729779373806,3.95948,2525.6,2525.0,3.96039]
[1729779374030,3.95971,2525.5,2525.2,1.0143]
[1729779374344,3.95983,2525.4,2525.2,1.0143]
[1729779374548,3.95983,2525.4,2524.9,3.96055]
[1729779374549,3.95945,2525.6,2524.9,1.0545]
[1729779374843,3.96008,2525.2,2524.5,1.0545]
[1729779375067,3.96102,2524.6,2524.3,1.0545]
[1729779375360,3.96102,2524.6,2524.3,1.55612]
[1729779375564,3.96213,2523.9,2523.7,1.0928]
[1729779375713,3.96213,2523.9,2523.4,5.05559]
[1729779375913,3.96181,2524.1,2523.6,3.96252]
[1729779376445,3.96182,2524.1,2523.6,3.96257]
[1729779377319,3.9617,2524.2,2523.7,4.0415993]
[1729779377632,3.96187,2524.1,2523.6,3.96257]
[1729779378035,3.96187,2524.1,2523.6,3.96251]
[1729779378242,3.96187,2524.1,2523.7,0.0792393]
[1729779378550,3.96163,2524.3,2523.8,1.0415]
[1729779378846,3.96135,2524.4,2523.9,3.96204]
[1729779379146,3.96127,2524.5,2524.0,4.04108929]
[1729779379344,3.96134,2524.4,2523.9,7.92406]
[1729779379550,3.96086,2524.7,2524.0,0.0792293]
[1729779379719,3.96086,2524.7,2524.0,4.0411493]
[1729779379917,3.9613,2524.5,2523.9,3.0]
[1729779380112,3.96104,2524.6,2524.1,3.96171]
[1729779380326,3.96125,2524.5,2524.2,0.792366]
[1729779380538,3.96125,2524.5,2523.8,5.00367]
[1729779380539,3.96146,2524.4,2523.8,1.0415]
[1729779380727,3.96146,2524.4,2523.8,4.0415]
[1729779380930,3.96167,2524.2,2523.8,4.0415]
[1729779381122,3.96167,2524.2,2523.8,4.12073651]
[1729779381447,3.96142,2524.4,2523.8,1.0415]
[1729779381448,3.96133,2524.4,2523.8,1.0415]
[1729779381612,3.96191,2524.1,2523.8,1.0415]
[1729779381809,3.96191,2524.1,2523.8,1.84982493]
[1729779382413,3.96158,2524.3,2523.8,1.84982493]
[1729779382616,3.96126,2524.5,2524.0,3.96185]
[1729779382843,3.96134,2524.4,2524.0,3.96185]
[1729779383042,3.96126,2524.5,2524.0,3.96185]
[1729779383211,3.96126,2524.5,2524.1,0.07922801]
[1729779383416,3.96126,2524.5,2524.0,7.92372]
[1729779383725,7.92252,2524.5,2524.1,0.80029479]
[1729779383933,3.96126,2524.5,2524.0,4.04107961]
[1729779384144,3.96098,2524.7,2524.1,5.05763]
[1729779384332,3.96031,2525.1,2524.6,3.96101]
[1729779384537,7.92098,2525.0,2524.7,0.505691]
[1729779384835,3.96049,2525.0,2524.7,0.505691]
[1729779385053,7.91972,2525.4,2524.7,0.505691]
[1729779385224,3.96002,2525.3,2524.9,1.0848]
[1729779385625,3.95972,2525.5,2525.0,4.03950235]
[1729779385826,3.95953,2525.6,2525.1,3.96016]
[1729779386045,3.95941,2525.7,2525.2,3.96003]
[1729779386232,3.95921,2525.8,2525.3,5.13731373]
[1729779386431,3.9595,2525.6,2525.4,0.90973437]
[1729779386768,3.95969,2525.5,2525.0,1.0322]
[1729779386969,3.95969,2525.5,2525.0,4.9925]
[1729779387126,3.95992,2525.3,2525.0,1.0322]
[1729779387464,3.96021,2525.2,2525.0,1.0322]
[1729779387666,3.95993,2525.3,2525.0,1.0322]
[1729779388357,1.0186,2525.5,2525.0,1.0322]
[1729779388358,4.97834,2525.5,2525.0,1.0322]
[1729779388664,3.95989,2525.4,2524.7,0.9981]
[1729779388861,3.96015,2525.2,2524.8,0.795902]
[1729779389361,7.92034,2525.2,2524.8,0.795902]
[1729779389569,3.96055,2524.9,2524.7,0.9981]
[1729779389736,8.65800428,2525.4,2524.6,3.961]
[1729779390059,3.96023,2525.1,2524.7,5.13267239]
[1729779390353,3.96039,2525.0,2524.7,1.17181239]
[1729779390559,3.96023,2525.1,2524.7,6.04205763]
[1729779391251,3.96031,2525.1,2524.7,2.08120763]
[1729779391423,3.96031,2525.1,2524.7,5.96284524]
[1729779391624,3.96002,2525.3,2524.8,3.9607]
[1729779391863,3.96002,2525.3,2524.8,4.03990927]
[1729779392030,3.96002,2525.3,2524.9,0.87780899]
[1729779392237,3.95986,2525.4,2524.9,4.83827899]
[1729779392470,3.96004,2525.3,2524.9,0.87780899]
[1729779392626,3.95985,2525.4,2524.7,1.0926]
[1729779392627,3.9603,2525.1,2524.7,1.0926]
[1729779392968,3.96002,2525.3,2524.8,3.96069]
[1729779393157,3.96024,2525.1,2524.7,5.05345]
[1729779393657,3.96052,2525.0,2524.7,1.0926]
[1729779394292,7.921,2525.0,2524.7,1.0926]
[1729779394736,3.96019,2525.2,2524.7,5.558678]
[1729779394939,3.96019,2525.2,2524.7,5.63789294]
[1729779395964,3.96002,2525.3,2524.8,3.96068]
[1729779396132,3.95972,2525.5,2524.8,4.03976656]
[1729779396133,3.95987,2525.4,2524.8,4.03976656]
[1729779396333,3.95962,2525.5,2524.9,3.96055]
[1729779396533,3.95962,2525.5,2525.0,4.44348525]
[1729779396756,3.9601,2525.2,2525.0,0.40397566]
[1729779396932,3.95994,2525.3,2524.8,3.96064]
[1729779398011,3.95993,2525.3,2524.9,3.96051]
[1729779398274,3.95986,2525.4,2525.0,3.96034]
[1729779398476,3.9597,2525.5,2525.1,1.0467]
[1729779398636,3.9597,2525.5,2525.1,5.00692]
[1729779398846,3.95939,2525.7,2525.2,3.96001]
[1729779399035,3.95939,2525.7,2525.1,5.99073661]
[1729779399249,3.95939,2525.7,2525.2,3.95996]
[1729779399449,3.95907,2525.9,2525.3,3.95983]
[1729779399746,3.95914,2525.8,2525.3,3.95992]
[1729779399951,7.9184,2525.8,2525.4,0.791988]
[1729779400152,3.95914,2525.8,2525.3,3.95992]
[1729779400560,4.69816428,2525.7,2525.1,1.0467]
[1729779400763,3.95985,2525.4,2524.9,3.96054]
[1729779401177,3.96001,2525.3,2525.0,1.0117]
[1729779401478,3.95976,2525.4,2525.0,4.97208]
[1729779401869,1.0077,2525.6,2525.0,2.204977]
[1729779402074,4.96724,2525.6,2525.0,4.97196]
[1729779402281,3.95971,2525.5,2525.0,4.97196]
[1729779402458,4.96724,2525.6,2525.0,1.0117]
[1729779402459,3.95992,2525.3,2525.0,1.0117]
[1729779402863,3.96023,2525.1,2524.7,3.96078]
[1729779403073,8.65815428,2525.3,2524.8,3.96064]
[1729779403074,3.95999,2525.3,2524.8,3.96064]
[1729779403256,3.95999,2525.3,2524.7,4.465888]
[1729779403470,3.95979,2525.4,2524.9,3.96041]
[1729779403672,3.95979,2525.4,2524.8,5.04308]
[1729779403875,3.96009,2525.2,2524.8,5.04308]
[1729779404077,3.96009,2525.2,2524.8,5.9939888]
[1729779404250,3.96009,2525.2,2524.8,1.0824]
[1729779404251,3.96037,2525.1,2524.8,1.0824]
[1729779404866,4.69816428,2525.0,2524.3,5.04386]
[1729779405092,3.9613,2524.5,2524.3,1.0824]
[1729779405398,3.96158,2524.3,2524.0,1.0824]
[1729779405592,3.96129,2524.5,2524.0,1.0824]
[1729779405895,3.96136,2524.4,2524.0,5.548802]
[1729779406187,3.9611,2524.6,2524.1,3.96172]
[1729779406402,3.9611,2524.6,2524.0,5.548732]
[1729779406403,1.0286,2524.9,2524.0,1.586842]
[1729779406550,3.96121,2524.5,2524.1,3.96173]
[1729779407087,7.92247,2524.5,2524.1,3.96171]
[1729779407293,3.96121,2524.5,2524.0,1.0824]
[1729779407603,3.96135,2524.4,2524.0,1.0824]
[1729779407770,3.96121,2524.5,2524.0,1.0824]
[1729779408093,3.96121,2524.5,2524.1,3.9618]
[1729779408458,3.96108,2524.6,2524.2,3.96164]
[1729779409174,3.96108,2524.6,2524.1,4.87033602]
[1729779409394,3.96134,2524.4,2524.0,1.0824]
[1729779409595,3.96159,2524.3,2524.0,1.0824]
[1729779409767,8.65903428,2524.7,2524.0,1.0824]
[1729779409768,3.96168,2524.2,2524.0,1.0824]
[1729779410399,3.9615,2524.3,2524.0,1.0824]
[1729779410571,3.96148,2524.4,2524.0,1.0824]
[1729779411399,3.96148,2524.4,2524.0,5.944951]
[1729779411567,1.0286,2524.9,2524.0,5.945021]
[1729779411762,3.96134,2524.4,2524.0,5.944941]
[1729779412273,3.96118,2524.5,2524.0,5.944891]
[1729779412482,3.96118,2524.5,2524.1,3.9617]
[1729779412662,3.96103,2524.6,2524.1,0.99858212]
[1729779413096,3.96103,2524.6,2524.1,4.96031212]
[1729779413296,3.9612,2524.5,2524.1,4.96031212]
[1729779413673,3.96134,2524.4,2524.1,0.99858212]
[1729779414205,3.96158,2524.3,2524.0,1.0824]
[1729779414361,7.92321,2524.3,2524.0,1.0824]
[1729779414796,3.9618,2524.1,2523.8,1.0393]
[1729779415007,3.96193,2524.1,2523.8,1.0393]
[1729779415170,1.022,2524.4,2523.8,1.0393]
[1729779415374,3.96206,2524.0,2523.8,1.0393]
[1729779415787,3.96173,2524.2,2523.8,1.0393]
[1729779416274,3.9618,2524.1,2523.8,1.0393]
[1729779418770,3.9615,2524.3,2523.9,3.96206]
[1729779418989,3.9615,2524.3,2523.8,1.935721]
[1729779419190,3.96183,2524.1,2523.8,4.935721]
[1729779419375,3.96197,2524.0,2523.8,1.0393]
[1729779419589,3.96197,2524.0,2523.1,0.0008]
[1729779419590,3.96219,2523.9,2523.4,3.96278]
[1729779420407,3.96219,2523.9,2523.4,4.04212853]
[1729779420408,3.96235,2523.8,2523.4,4.04212853]
[1729779420724,3.96235,2523.8,2523.3,3.96299]
[1729779421014,3.96235,2523.8,2523.4,3.96288]
[1729779421181,3.96235,2523.8,2523.3,3.96299]
[1729779421182,3.96257,2523.7,2523.3,3.0]
[1729779421375,3.96196,2524.0,2523.4,3.96288]
[1729779421576,3.96226,2523.9,2523.4,3.96283]
[1729779421771,3.96184,2524.1,2523.4,0.07925421]
[1729779421985,7.92375,2524.1,2523.6,3.96251]
[1729779422176,3.96199,2524.0,2523.6,3.96251]
[1729779422800,3.96199,2524.0,2523.5,5.03752]
[1729779423025,3.96221,2523.9,2523.5,1.0748]
[1729779423186,3.96231,2523.8,2523.5,1.0748]
[1729779423713,3.96214,2523.9,2523.5,1.974835]
[1729779423915,3.9619,2524.1,2523.7,3.96235]
[1729779424120,3.96199,2524.0,2523.6,3.96251]
[1729779424550,3.96234,2523.8,2523.2,1.1014]
[1729779424826,4.69816428,2524.1,2523.4,3.96281]
[1729779424827,3.9622,2523.9,2523.4,3.96281]
[1729779424997,4.69816428,2524.1,2523.3,3.0]
[1729779424998,3.96196,2524.0,2523.3,3.0]
[1729779425195,3.96306,2523.3,2523.1,0.0008]
[1729779425401,3.96322,2523.2,2523.1,0.0008]
[1729779426495,9.69618428,2523.2,2523.1,0.0008]
[1729779426697,12.69618428,2523.2,2523.1,0.0008]
[1729779426923,13.62381948,2523.2,2523.1,0.0008]
[1729779427122,33.26381948,2523.2,2523.1,0.0008]
[1729779427428,8.60127,2523.1,2523.0,1e-05]
[1729779427641,8.4189052,2523.1,2523.0,1e-05]
[1729779428234,8.9689052,2523.1,2523.0,1e-05]
[1729779428429,8.60127,2523.1,2523.0,1e-05]
[1729779428605,28.60857441,2523.1,2523.0,1e-05]
[1729779429026,28.60854031,2523.1,2523.0,1e-05]
[1729779429544,28.24127,2523.1,2523.0,1e-05]
[1729779434826,3.96496,2522.1,2521.5,3.96581]
[1729779435034,1.0477,2522.3,2521.5,1.0604]
[1729779435035,3.96544,2521.8,2521.5,1.0604]
[1729779435271,3.96544,2521.8,2521.2,3.96625]
[1729779435272,3.96544,2521.8,2521.2,5.02665]
[1729779435438,8.66350428,2521.9,2521.4,3.96602]
[1729779435637,12.62892428,2521.9,2521.2,8.99293]
[1729779435826,3.96557,2521.7,2521.2,5.927023]
[1729779436162,9.71742428,2521.9,2521.4,3.96597]
[1729779436572,9.71707428,2522.2,2521.6,3.96564]
[1729779436861,9.71707428,2522.2,2521.6,3.96565]
[1729779437427,3.96495,2522.1,2521.7,1.0158]
[1729779437743,3.9651,2522.0,2521.6,3.96562]
[1729779438139,3.96495,2522.1,2521.6,3.96562]
[1729779438662,5.75216428,2522.2,2521.6,3.96562]
[1729779438977,3.96407,2522.7,2522.1,3.96487]
[1729779439140,5.70646428,2522.8,2521.9,1.062]
[1729779439141,3.96464,2522.3,2521.9,1.062]
[1729779439459,3.96503,2522.1,2521.6,5.01462]
[1729779439667,3.96519,2522.0,2521.6,1.049]
[1729779441138,3.96435,2522.5,2521.6,1.049]
[1729779441139,4.96714,2522.6,2522.0,3.96495]
[1729779441462,4.96714,2522.6,2521.6,1.68341932]
[1729779441463,1.0029,2522.6,2521.6,1.68341932]
[1729779441759,8.93147,2522.6,2522.0,7.93004]
[1729779442057,8.93147,2522.6,2522.0,3.96501]
[1729779442266,3.96458,2522.4,2521.9,3.96524]
[1729779442733,3.96458,2522.4,2521.8,3.96529]
[1729779442933,3.96419,2522.6,2522.1,5.03753]
[1729779443144,3.96393,2522.8,2522.3,3.96463]
[1729779443366,3.96393,2522.8,2522.1,5.03759]
[1729779443367,3.964,2522.7,2522.2,3.96474]
[1729779443528,3.96393,2522.8,2522.3,3.96456]
[1729779443869,25.43686428,2523.1,2522.4,3.96437]
[1729779444038,3.96362,2523.0,2522.6,1.03]
[1729779444364,24.70223,2523.1,2522.6,1.03]
[1729779444567,19.64,2523.1,2522.6,1.03]
[1729779444886,3.96334,2523.2,2522.6,4.99403]
[1729779445158,3.96306,2523.3,2522.8,3.96372]
[1729779445348,3.9635,2523.1,2522.6,1.03]
[1729779445547,3.96355,2523.0,2522.6,1.03]
[1729779445746,3.96377,2522.9,2522.6,1.03]
[1729779445939,8.66108428,2523.4,2522.6,1.03]
[1729779446140,3.96372,2522.9,2522.4,1.03]
[1729779446362,3.96392,2522.8,2522.4,1.03]
[1729779446748,3.96372,2522.9,2522.4,1.03]
[1729779446952,3.9635,2523.1,2522.6,3.96411]
[1729779447157,3.96331,2523.2,2522.5,3.96432]
[1729779447342,23.60302,2523.4,2522.9,3.96365]
[1729779447543,3.96314,2523.3,2522.8,4.99384]
[1729779447935,3.96314,2523.3,2522.8,1.03]
[1729779448136,3.96384,2522.9,2522.5,1.03]
[1729779448368,3.96353,2523.0,2522.5,1.03]
[1729779448369,3.96362,2523.0,2522.5,4.99421]
[1729779449171,3.96353,2523.0,2522.6,3.96416]
[1729779449367,3.96353,2523.0,2522.5,4.99429]
[1729779449569,7.92715,2523.0,2522.5,4.99429]
[1729779450078,4.69816428,2523.1,2522.5,1.03]
[1729779450370,3.96416,2522.6,2522.1,1.0402]
[1729779450546,3.96461,2522.4,2522.1,1.0402]
[1729779450747,7.92917,2522.4,2522.1,1.0402]
[1729779451068,3.96471,2522.3,2522.1,1.0402]
[1729779451281,7.92915,2522.4,2522.1,1.0402]
[1729779451456,3.96493,2522.2,2521.7,5.06646]
[1729779451652,3.96464,2522.3,2521.7,5.06646]
[1729779451837,3.96496,2522.1,2521.7,5.06646]
[1729779452039,7.93002,2522.1,2521.7,1.1009]
[1729779452266,3.96496,2522.1,2521.7,1.1009]
[1729779452473,3.96518,2522.0,2521.7,1.1009]
[1729779452940,3.9651,2522.0,2521.7,1.1009]
[1729779453270,3.96542,2521.8,2521.4,1.1009]
[1729779453472,7.93017,2522.1,2521.5,3.96576]
[1729779453683,3.96507,2522.1,2521.6,3.96565]
[1729779453855,3.96535,2521.9,2521.4,5.14618033]
[1729779454052,3.96535,2521.9,2521.4,5.97810003]
[1729779454469,3.96502,2522.1,2521.4,5.97810003]
[1729779454657,3.96511,2522.0,2521.5,3.96579]
[1729779454959,3.96502,2522.1,2521.4,5.97810003]
[1729779455175,3.96517,2522.0,2521.5,3.96586]
[1729779455373,3.96517,2522.0,2521.5,0.994396]
[1729779455644,3.96539,2521.9,2521.4,1.1009]
[1729779455846,3.96558,2521.7,2521.4,1.1009]
[1729779456346,3.96537,2521.9,2521.4,1.1009]
[1729779456572,3.96544,2521.8,2521.4,1.1009]
[1729779456975,3.96537,2521.9,2521.4,1.1009]
[1729779456976,20.6885,2522.4,2521.4,1.18022]
[1729779457164,20.6885,2522.4,2521.4,1.1009]
[1729779457165,3.96479,2522.2,2521.4,1.1009]
[1729779457360,3.96543,2521.8,2521.4,1.1009]
[1729779457962,20.6885,2522.4,2521.4,1.1009]
[1729779458273,20.6885,2522.4,2521.2,3.7872]
[1729779458274,3.96581,2521.6,2521.2,3.7872]
[1729779458460,3.96542,2521.8,2521.2,0.7872]
[1729779458664,3.96617,2521.4,2521.2,0.7872]
[1729779458879,3.96617,2521.4,2521.0,0.01]
[1729779458880,3.9662,2521.3,2521.0,0.7972]
[1729779459083,5.45166428,2521.9,2521.0,0.7972]
[1729779459084,3.96646,2521.2,2521.0,0.7972]
[1729779459252,3.96638,2521.2,2521.0,0.01]
[1729779459700,3.96623,2521.3,2521.0,0.01]
[1729779460353,3.96652,2521.1,2521.0,0.01]
[1729779460556,0.7535,2521.5,2521.0,0.01]
[1729779460757,3.96605,2521.4,2521.0,0.01]
[1729779461058,3.96638,2521.2,2521.0,0.01]
[1729779461256,3.96652,2521.1,2521.0,0.01]
[1729779463561,0.7535,2521.5,2521.0,0.01]
[1729779463797,3.96652,2521.1,2521.0,0.01]
[1729779463958,3.96622,2521.3,2521.0,0.01]
[1729779464287,3.96652,2521.1,2521.0,0.01]
[1729779464859,3.9662,2521.3,2521.0,0.01]
[1729779465180,3.96639,2521.2,2521.0,0.01]
[1729779465385,0.7535,2521.5,2521.0,0.01]
[1729779465386,4.7195,2521.5,2521.0,0.01]
[1729779465618,3.96629,2521.3,2521.0,0.01]
[1729779465890,3.96585,2521.6,2521.1,3.9665]
[1729779466263,7.93168,2521.6,2521.1,3.9665]
[1729779466787,3.96583,2521.6,2521.2,3.96628]
[1729779466991,3.96573,2521.6,2521.2,3.96628]
[1729779467295,7.93155,2521.6,2521.1,4.840504]
[1729779467463,3.96562,2521.7,2521.1,4.840414]
[1729779467665,3.9658,2521.6,2521.1,8.806814]
[1729779467853,3.9658,2521.6,2521.0,0.8067]
[1729779467854,8.66352428,2521.9,2521.2,4.9276114]
[1729779468183,3.96545,2521.8,2521.3,3.96607]
[1729779468356,3.96545,2521.8,2521.3,3.9662]
[1729779468557,3.96545,2521.8,2521.4,3.96604]
[1729779468762,3.96545,2521.8,2521.2,4.79274]
[1729779468991,3.96565,2521.7,2521.2,4.79274]
[1729779469197,3.96543,2521.8,2521.3,3.96618]
[1729779469507,3.96543,2521.8,2521.2,5.273014]
[1729779469508,3.9656,2521.7,2521.2,5.273014]
[1729779469796,0.7878,2522.0,2521.5,3.96579]
[1729779469797,3.96519,2522.0,2521.5,3.96579]
[1729779469984,3.96537,2521.9,2521.4,3.96603]
[1729779470185,3.96544,2521.8,2521.4,3.96603]
[1729779470561,3.96559,2521.7,2521.2,1.306674]
[1729779470775,3.9651,2522.0,2521.2,0.8264]
[1729779470997,3.9658,2521.6,2521.2,0.8264]
[1729779471668,3.96591,2521.5,2521.2,0.8264]
[1729779471875,3.96613,2521.4,2521.2,0.8264]
[1729779472260,3.96591,2521.5,2521.0,3.97666]
[1729779472694,3.96608,2521.4,2521.0,3.97666]
[1729779472915,3.96608,2521.4,2521.0,0.01]
[1729779473065,3.96608,2521.4,2521.0,3.97661]
[1729779473259,3.96608,2521.4,2521.0,0.01]
[1729779473685,3.96608,2521.4,2521.0,3.97667]
[1729779476103,3.96608,2521.4,2521.0,0.01]
[1729779476263,3.9662,2521.3,2521.0,0.01]
[1729779476468,3.96651,2521.2,2521.0,0.01]
[1729779476930,3.96652,2521.1,2521.0,0.01]
[1729779477805,3.96651,2521.2,2521.0,0.01]
[1729779478010,7.93301,2521.2,2521.0,0.01]
[1729779478219,4.75812,2521.1,2521.0,0.01]
[1729779478383,3.96652,2521.1,2521.0,0.01]
[1729779479222,0.7916,2521.4,2521.0,0.01]
[1729779479388,3.9664,2521.2,2521.0,0.01]
[1729779479707,3.96652,2521.1,2521.0,0.01]
[1729779480088,7.65131667,2521.1,2521.0,0.01]
[1729779480288,0.7916,2521.4,2521.0,0.01]
[1729779480497,3.96652,2521.1,2521.0,0.01]
[1729779480809,7.65131667,2521.1,2521.0,0.01]
[1729779481116,8.41051667,2521.1,2521.0,0.01]
[1729779482013,3.96621,2521.3,2521.0,0.01]
[1729779482314,3.96652,2521.1,2521.0,0.01]
[1729779483191,7.65131667,2521.1,2521.0,0.01]
[1729779483389,8.46371667,2521.1,2521.0,0.01]
[1729779483594,4.77892,2521.1,2521.0,0.01]
[1729779483782,3.96652,2521.1,2521.0,0.01]
[1729779484396,3.96636,2521.2,2521.0,0.01]
[1729779484601,3.96652,2521.1,2521.0,0.01]
[1729779485023,3.96643,2521.2,2521.0,0.01]
[1729779485330,3.96652,2521.1,2521.0,0.01]
[1729779485533,7.65131667,2521.1,2521.0,0.01]
[1729779485922,3.96652,2521.1,2521.0,0.01]
[1729779486119,7.65131667,2521.1,2521.0,0.01]
[1729779486516,8.47581667,2521.1,2521.0,0.01]
[1729779486838,11.47581667,2521.1,2521.0,0.01]
[1729779487047,35.71806579,2521.1,2520.8,0.1242288]
[1729779487254,3.96856,2519.8,2518.9,0.41357025]
[1729779487537,7.65461667,2519.0,2518.9,0.41357025]
[1729779487743,3.96982,2519.0,2518.5,3.9706]
[1729779487941,3.96982,2519.0,2518.3,0.1242288]
[1729779487942,3.97016,2518.8,2518.3,0.1242288]
[1729779488101,3.97055,2518.6,2518.3,0.1242288]
[1729779488298,8.44676667,2518.4,2518.3,0.1242288]
[1729779488547,31.63676667,2518.4,2518.3,0.1242288]
[1729779488706,27.39197,2518.4,2518.3,0.1242288]
[1729779489317,29.18197,2518.4,2518.3,8.8e-06]
[1729779489533,28.63197,2518.4,2518.3,8.8e-06]
[1729779489837,27.39197,2518.4,2518.3,8.8e-06]
[1729779490234,24.39197,2518.4,2518.3,8.8e-06]
[1729779490619,23.61077,2518.4,2518.3,8.8e-06]
[1729779491215,27.95107,2518.4,2518.3,8.8e-06]
[1729779491438,29.23140808,2518.4,2518.3,8.8e-06]
[1729779491644,28.57776822,2518.4,2518.3,8.8e-06]
[1729779491948,27.96107,2518.4,2518.3,8.8e-06]
[1729779492102,28.57776822,2518.4,2518.3,8.8e-06]
[1729779492819,28.57776822,2518.4,2516.9,0.7899]
[1729779492820,3.97275,2517.2,2516.9,0.7899]
[1729779493018,9.47538433,2517.6,2516.9,3.97312]
[1729779493250,9.47533433,2517.6,2517.0,3.97296]
[1729779493406,9.47533433,2517.6,2516.5,0.7743]
[1729779493745,0.7743,2517.6,2517.1,3.97269]
[1729779494045,3.97198,2517.7,2517.0,3.97288]
[1729779494205,0.7902,2518.0,2516.6,3.97361]
[1729779494206,0.7902,2518.0,2516.8,0.782]
[1729779494406,20.4302,2518.4,2517.8,3.97162]
[1729779494644,20.4302,2518.4,2517.6,3.97194]
[1729779494645,3.97094,2518.3,2517.6,3.97194]
[1729779494813,20.4302,2518.4,2517.8,3.97162]
[1729779495017,20.4302,2518.4,2518.0,3.97136]
[1729779495218,19.64,2518.4,2518.0,3.97136]
[1729779495458,19.64,2518.4,2518.0,3.97131]
[1729779495950,19.64,2518.4,2518.3,3.97093]
[1729779496105,5.49791433,2518.8,2518.3,3.97093]
[1729779496309,5.49791433,2518.8,2518.2,3.971]
[1729779496508,9.46819433,2518.8,2518.2,3.971]
[1729779496709,3.9703,2518.7,2518.2,3.971]
[1729779496910,5.49791433,2518.8,2518.3,3.97084]
[1729779496911,0.769,2518.8,2518.3,3.97084]
[1729779497650,0.769,2518.8,2518.2,3.97097]
[1729779497811,4.73916,2518.8,2518.3,3.97091]
[1729779498134,19.64,2519.0,2517.8,3.97172]
[1729779498326,3.0,2519.0,2518.5,3.9705]
[1729779498533,3.0,2519.0,2518.3,3.97084]
[1729779498534,3.97,2518.9,2518.3,7.94166]
[1729779498731,3.97,2518.9,2518.4,3.97077]
[1729779499029,4.76148,2519.1,2518.6,3.97045]
[1729779499230,4.76148,2519.1,2518.4,4.77448]
[1729779499427,3.97009,2518.9,2518.2,3.97095]
[1729779499753,4.76156,2519.1,2518.4,3.97067]
[1729779499911,3.96999,2518.9,2518.4,3.97067]
[1729779500113,7.94008,2518.9,2518.4,3.97067]
[1729779500314,3.96999,2518.9,2518.3,3.97092]
[1729779500543,3.96999,2518.9,2518.2,4.448455]
[1729779500544,3.96999,2518.9,2518.4,3.97064]
[1729779500726,3.96999,2518.9,2518.2,0.477475]
[1729779500727,3.96999,2518.9,2518.2,4.448475]
[1729779500914,7.94012,2518.9,2518.3,3.97091]
[1729779501239,3.97051,2518.6,2518.0,3.97131]
[1729779501442,3.97086,2518.4,2517.8,3.97159]
[1729779501773,3.97086,2518.4,2517.5,0.7843]
[1729779501774,3.97136,2518.1,2517.5,4.75645]
[1729779502062,0.8198,2518.4,2517.5,3.97215]
[1729779502263,23.61103,2518.3,2517.1,0.7843]
[1729779502426,0.8198,2518.4,2517.6,3.97201]
[1729779502427,19.64,2518.2,2517.6,3.97201]
[1729779502633,19.64,2518.2,2517.7,3.97172]
[1729779502828,0.8198,2518.4,2517.7,3.97172]
[1729779502829,20.4598,2518.4,2517.7,3.97172]
[1729779503050,24.43068,2518.4,2517.5,3.97209]
[1729779503361,3.97117,2518.2,2517.3,3.97242]
[1729779503561,3.97143,2518.0,2517.3,3.97242]
[1729779503731,3.97125,2518.1,2517.4,3.97226]
[1729779503935,3.97109,2518.2,2517.1,4.75701]
[1729779503936,3.97142,2518.0,2517.1,4.75701]
[1729779504124,0.7624,2517.7,2517.1,3.97272]
[1729779504319,0.7624,2517.7,2516.9,3.97298]
[1729779504636,19.64,2517.9,2517.3,3.97239]
[1729779504848,23.61157,2517.9,2517.2,3.97266]
[1729779505019,23.61157,2517.9,2516.9,0.473978]
[1729779505020,19.64,2517.9,2517.4,3.97227]
[1729779505220,19.64,2517.9,2517.5,3.97219]
[1729779505536,7.74891433,2518.5,2517.5,3.97219]
[1729779505537,19.64,2518.3,2517.9,3.97156]
[1729779505769,3.97046,2518.6,2517.9,3.97156]
[1729779505965,4.74734,2518.8,2518.0,3.9714]
[1729779505966,24.38734,2518.8,2518.0,3.9714]
[1729779506125,24.38734,2518.8,2518.1,3.97116]
[1729779506661,28.35758,2518.8,2518.1,3.97116]
[1729779506850,24.38734,2518.8,2518.1,3.97116]
[1729779507048,24.38734,2518.8,2517.9,3.97144]
[1729779507049,3.97032,2518.7,2517.9,3.97144]
[1729779507249,3.97032,2518.7,2518.0,3.97138]
[1729779507549,3.97032,2518.7,2517.6,3.802]
[1729779507550,20.4171,2518.8,2517.7,3.0]
[1729779507755,20.4171,2518.8,2518.2,3.97096]
[1729779508125,20.4171,2518.8,2518.4,3.97069]
[1729779508464,20.4171,2518.8,2517.8,4.749078]
[1729779508465,0.7771,2518.8,2518.1,7.94226]
[1729779508662,0.7771,2518.8,2518.2,3.97106]
[1729779509641,0.7771,2518.8,2518.3,3.97089]
[1729779509839,0.7771,2518.8,2518.2,3.97093]
[1729779510867,0.7771,2518.8,2518.3,3.97085]
[1729779511327,4.74726,2518.8,2518.1,3.97124]
[1729779511523,7.94085,2518.7,2517.9,3.97146]